bitfinex/quotes_ETHUSD_20250806
["timestamp","ask_amount","ask_price","bid_price","bid_amount"]
[1754446969720,0.1392,3586.0,3585.9,3.69498371]
[1754446974924,0.001,3586.2,3586.1,2.78854465]
[1754446975304,0.001,3586.2,3586.1,3.69484465]
[1754446975625,0.001,3586.2,3586.1,3.26044465]
[1754446976030,0.001,3586.2,3586.1,3.69484465]
[1754446979099,0.001,3586.2,3586.1,3.72273009]
[1754446979295,1e-08,3586.5,3586.4,5.78831139]
[1754446979540,1e-08,3586.5,3586.4,10.04431139]
[1754446979849,1e-08,3586.7,3586.6,2.78815591]
[1754446980133,1e-08,3586.7,3586.6,10.18335591]
[1754446980329,1e-08,3586.7,3586.6,12.47744487]
[1754446987550,1e-08,3586.7,3586.6,11.43094487]
[1754446987844,0.10200001,3586.7,3586.6,5.78815591]
[1754446988030,0.24120001,3586.7,3586.6,5.78815591]
[1754446988742,0.24120001,3586.7,3586.6,2.78815591]
[1754446989134,0.24120001,3586.7,3586.5,2.78821047]
[1754446989447,0.102,3586.6,3586.5,2.78821047]
[1754446989618,0.10200001,3586.7,3586.6,2.78815591]
[1754446990241,0.24120001,3586.7,3586.5,2.78820232]
[1754446990545,0.13920001,3586.7,3586.6,2.78815591]
[1754446990737,1e-08,3586.7,3586.6,2.78815591]
[1754446990938,0.13920001,3586.7,3586.6,2.78815591]
[1754446992348,0.58190001,3586.7,3586.5,2.78823277]
[1754446992549,1e-08,3586.7,3586.6,0.002]
[1754446992916,3.50393851,3586.7,3586.6,0.002]
[1754446993253,3.94973851,3586.7,3586.6,0.002]
[1754446996226,3.6892834,3586.7,3586.6,0.002]
[1754446996425,3.94965285,3586.7,3586.6,0.002]
[1754446996635,8.20465285,3586.7,3586.6,0.002]
[1754446996839,8.20465167,3586.7,3586.6,0.002]
[1754446998565,9.04187167,3586.7,3586.6,0.002]
[1754446999259,6.2537935,3586.7,3586.6,0.002]
[1754446999559,5.8079935,3586.7,3586.6,0.002]
[1754447001776,8.59607167,3586.7,3586.6,0.002]
[1754447001930,9.04187167,3586.7,3586.6,0.002]
[1754447002277,9.04184653,3586.7,3586.6,0.002]
[1754447002434,9.59184653,3586.7,3586.6,0.002]
[1754447005966,9.14604653,3586.7,3586.6,0.002]
[1754447006368,9.59184653,3586.7,3586.6,0.002]
[1754447006985,9.14604653,3586.7,3586.6,0.002]
[1754447007146,5.80796836,3586.7,3586.6,0.4739]
[1754447008071,5.80784016,3586.7,3586.6,0.4739]
[1754447008272,5.80784016,3586.7,3586.6,0.002]
[1754447008608,5.49163494,3586.7,3586.6,0.9414]
[1754447008964,5.49163494,3586.7,3586.6,0.4739]
[1754447009557,5.49163494,3586.7,3586.6,3.72955591]
[1754447009558,4.39420001,3586.7,3586.6,3.72955591]
[1754447010337,4.39420001,3586.7,3586.6,0.9414]
[1754447010644,0.13920001,3586.7,3586.6,0.9414]
[1754447010854,4.39420001,3586.7,3586.6,0.4739]
[1754447011183,4.83382001,3586.7,3586.6,0.002]
[1754447011343,5.0940763,3586.7,3586.6,0.002]
[1754447011866,4.39420001,3586.7,3586.6,3.72955591]
[1754447012039,4.39420001,3586.7,3586.6,0.9414]
[1754447012248,4.39420001,3586.7,3586.6,3.72955591]
[1754447013668,4.39420001,3586.7,3586.6,0.4739]
[1754447013864,4.39420001,3586.7,3586.6,3.26205591]
[1754447014065,4.39420001,3586.7,3586.6,3.72955591]
[1754447014904,4.39320001,3586.7,3586.6,4.2163113]
[1754447015201,4.39320001,3586.7,3586.6,3.72955591]
[1754447016302,4.39320001,3586.7,3586.6,0.9414]
[1754447016498,4.39320001,3586.7,3586.6,3.72955591]
[1754447017606,4.39320001,3586.7,3586.6,0.4739]
[1754447017901,4.39320001,3586.7,3586.6,3.26205591]
[1754447018062,4.65410042,3586.7,3586.6,3.26205591]
[1754447018459,4.65410042,3586.7,3586.6,3.72955591]
[1754447018664,4.65410042,3586.7,3586.6,0.4739]
[1754447018921,4.65410042,3586.7,3586.6,0.002]
[1754447019067,5.11971046,3586.7,3586.6,0.002]
[1754447019789,5.11978656,3586.7,3586.6,0.002]
[1754447020193,7.90786473,3586.7,3586.6,0.002]
[1754447020569,8.35366473,3586.7,3586.6,0.002]
[1754447021203,5.56558656,3586.7,3586.6,0.002]
[1754447021387,8.35366473,3586.7,3586.6,0.002]
[1754447021900,5.11978656,3586.7,3586.6,0.002]
[1754447022974,4.65417652,3586.7,3586.6,0.9327]
[1754447023735,4.65417652,3586.7,3586.6,0.4767]
[1754447024036,7.44225469,3586.7,3586.6,0.002]
[1754447024242,7.88055469,3586.7,3586.6,0.002]
[1754447024414,6.1959258,3586.7,3586.6,0.002]
[1754447024944,6.1959258,3586.7,3586.6,0.4767]
[1754447025157,6.1959258,3586.7,3586.6,0.002]
[1754447026904,5.12887652,3586.7,3586.6,0.9327]
[1754447027425,4.65417652,3586.7,3586.6,0.9327]
[1754447027606,0.40017652,3586.7,3586.6,3.72085591]
[1754447027807,4.65417652,3586.7,3586.6,3.72085591]
[1754447028019,4.65417652,3586.7,3586.6,4.37176584]
[1754447028604,0.40028735,3586.7,3586.6,4.37176584]
[1754447028839,4.65428735,3586.7,3586.6,4.37176584]
[1754447029564,0.13920001,3586.7,3586.6,4.37176584]
[1754447029848,1e-08,3586.7,3586.6,4.37176584]
[1754447030210,1e-08,3586.7,3586.6,4.51096584]
[1754447030858,1e-08,3586.7,3586.6,7.51096584]
[1754447031538,1e-08,3587.0,3586.8,5.78800044]
[1754447031736,1e-08,3587.0,3586.9,30.77164223]
[1754447031939,1e-08,3587.0,3586.9,31.67446301]
[1754447032679,1e-08,3587.0,3586.9,7.87379934]
[1754447038938,1e-08,3587.4,3587.3,5.78761185]
[1754447039157,1e-08,3587.4,3587.3,10.89715091]
[1754447039340,1e-08,3587.4,3587.3,11.82785091]
[1754447041883,1e-08,3587.4,3587.3,7.57585091]
[1754447043729,1e-08,3587.5,3587.4,5.78753414]
[1754447043997,0.001,3587.8,3587.7,5.78730105]
[1754447044174,4.25200001,3588.9,3587.8,2.78722336]
[1754447044175,1e-08,3588.9,3587.8,2.78722336]
[1754447044371,0.001,3588.5,3588.2,2.78691265]
[1754447044754,0.001,3588.5,3588.2,3.71761265]
[1754447046186,0.001,3588.5,3588.4,2.78675732]
[1754447046505,0.001,3588.5,3588.4,3.81679432]
[1754447048197,0.001,3588.5,3588.4,2.78675732]
[1754447048382,0.4393,3588.5,3587.7,3.26192668]
[1754447048588,0.4393,3588.5,3588.2,2.7868596]
[1754447048782,0.001,3588.5,3588.3,2.78682837]
[1754447048991,0.4393,3588.5,3588.3,2.78682837]
[1754447049186,0.1392,3588.4,3588.3,2.78682837]
[1754447050206,0.1392,3588.4,3588.3,3.86637938]
[1754447050390,0.1392,3588.4,3588.3,4.32237938]
[1754447050697,0.1392,3588.4,3588.3,3.39167938]
[1754447050997,0.5775,3588.4,3588.1,2.78693972]
[1754447051214,0.001,3588.5,3588.1,2.78693972]
[1754447051215,0.4383,3588.3,3588.1,2.78693972]
[1754447051417,0.4383,3588.3,3588.2,2.78691265]
[1754447051595,0.5775,3588.3,3588.2,2.78691265]
[1754447051778,0.1392,3588.3,3588.1,2.78696777]
[1754447052102,0.001,3588.5,3588.2,2.78684251]
[1754447052503,0.1392,3588.3,3588.1,2.78696989]
[1754447052663,0.1392,3588.1,3588.0,2.78705004]
[1754447052867,0.1392,3587.9,3587.7,3.0]
[1754447053167,0.1392,3587.9,3587.8,2.78722336]
[1754447053392,0.1392,3587.9,3587.8,3.24712336]
[1754447053823,0.1392,3587.9,3587.8,2.78722336]
[1754447055211,0.1392,3587.9,3587.5,0.4599]
[1754447055212,0.1392,3587.9,3587.7,2.78728564]
[1754447055412,0.4311,3588.2,3587.8,2.78722336]
[1754447055619,0.4311,3588.1,3587.8,2.78722336]
[1754447055840,0.1392,3587.9,3587.8,2.78722336]
[1754447056218,0.1392,3587.9,3587.7,2.78727178]
[1754447056422,0.4311,3588.1,3587.6,2.7873352]
[1754447056737,0.4311,3588.1,3587.5,0.4599]
[1754447056936,0.4311,3588.4,3587.5,0.4599]
[1754447057134,1.03163452,3588.4,3587.5,0.4599]
[1754447057339,0.1392,3587.6,3587.5,3.24735644]
[1754447058348,0.1392,3587.6,3587.5,2.78745644]
[1754447059144,0.1392,3587.6,3587.5,3.24735644]
[1754447059351,0.1392,3587.6,3587.5,3.71165644]
[1754447059959,0.1392,3587.6,3587.5,5.0867765]
[1754447060257,0.001,3587.9,3587.8,2.78722336]
[1754447060420,0.1402,3587.9,3587.8,2.78722336]
[1754447060762,0.1402,3587.9,3587.8,3.71142336]
[1754447060919,0.001,3587.9,3587.8,3.71142336]
[1754447061120,0.001,3587.9,3587.8,5.30647441]
[1754447062657,0.001,3587.9,3587.8,8.30647441]
[1754447063339,0.001,3587.9,3587.8,7.84217441]
[1754447063692,0.001,3587.9,3587.8,5.78722336]
[1754447063837,0.1402,3587.9,3587.8,6.25152336]
[1754447064042,0.001,3587.9,3587.8,6.71142336]
[1754447069712,0.001,3587.9,3587.8,6.85062336]
[1754447070113,0.001,3587.9,3587.8,10.49712336]
[1754447070597,0.001,3587.9,3587.8,11.40308426]
[1754447070908,0.001,3587.9,3587.8,7.03722336]
[1754447071121,0.1402,3587.9,3587.8,7.03722336]
[1754447071303,0.1402,3587.9,3587.8,2.78722336]
[1754447073494,0.1402,3587.9,3587.8,3.24712336]
[1754447074429,0.5713,3587.9,3587.7,2.78728018]
[1754447074652,0.4311,3587.8,3587.3,4.251]
[1754447074852,0.33583882,3587.8,3587.4,2.78752179]
[1754447075126,0.001,3587.9,3587.6,2.78730312]
[1754447075332,0.001,3587.9,3587.4,3.24743414]
[1754447075333,0.4311,3587.8,3587.3,0.002]
[1754447075508,0.001,3587.9,3587.6,2.78736522]
[1754447075706,0.4321,3587.9,3587.6,2.78736522]
[1754447076024,0.1392,3587.7,3587.6,2.78736522]
[1754447077446,0.1392,3587.7,3587.6,3.24726522]
[1754447077940,0.001,3587.9,3587.8,2.78722336]
[1754447078323,0.1402,3587.9,3587.8,3.24712336]
[1754447078641,0.1402,3587.9,3587.8,2.78722336]
[1754447079140,0.4012288,3587.9,3587.8,2.78722336]
[1754447079342,0.1402,3587.9,3587.8,2.78722336]
[1754447079640,0.4012288,3587.9,3587.7,2.7872742]
[1754447079834,0.1402,3587.9,3587.7,2.7872742]
[1754447080141,0.4012288,3587.9,3587.8,2.78722336]
[1754447080340,0.1402,3587.9,3587.8,2.78722336]
[1754447080503,0.4012288,3587.9,3587.8,3.24712336]
[1754447080704,0.1402,3587.9,3587.8,3.24712336]
[1754447081318,0.1402,3587.9,3587.8,4.36150245]
[1754447083330,0.1402,3587.9,3587.8,3.24712336]
[1754447084644,0.1402,3587.9,3587.8,3.70942336]
[1754447085652,0.001,3587.9,3587.8,3.70942336]
[1754447088034,0.001,3587.9,3587.8,3.24712336]
[1754447090657,0.001,3587.9,3587.8,3.70942336]
[1754447090843,0.001,3587.9,3587.8,4.79812245]
[1754447092051,0.001,3587.9,3587.8,3.87592245]
[1754447092376,0.001,3587.9,3587.8,3.25272336]
[1754447092968,0.001,3587.9,3587.8,2.78722336]
[1754447093632,0.001,3587.9,3587.8,3.25272336]
[1754447094029,0.001,3587.9,3587.8,3.71502336]
[1754447096575,0.001,3587.9,3587.8,3.25272336]
[1754447096752,0.001,3587.9,3587.8,2.78722336]
[1754447096947,0.001,3587.9,3587.8,3.25272336]
[1754447100577,0.001,3587.9,3587.8,2.78722336]
[1754447101381,0.001,3587.9,3587.6,2.78736644]
[1754447101555,0.1392,3587.7,3587.6,2.78736644]
[1754447101755,0.1392,3587.7,3587.5,0.002]
[1754447101981,0.4458,3587.6,3587.5,0.002]
[1754447102341,3.4943252,3587.6,3587.5,0.002]
[1754447102546,4.04434968,3587.6,3587.5,0.002]
[1754447102759,7.04434968,3587.6,3587.5,0.002]
[1754447102999,37.04434968,3587.6,3587.5,0.002]
[1754447103154,39.77301154,3587.6,3587.5,0.002]
[1754447104257,39.5118406,3587.6,3587.5,0.002]
[1754447104496,39.77237239,3587.6,3587.5,0.002]
[1754447105473,44.02037239,3587.6,3587.5,0.002]
[1754447106965,14.02037239,3587.6,3587.5,0.002]
[1754447107178,13.7598406,3587.6,3587.5,0.002]
[1754447107502,14.02100947,3587.6,3587.5,0.002]
[1754447107672,6.32620947,3587.6,3587.5,0.002]
[1754447107872,7.29654761,3587.6,3587.5,0.4675]
[1754447108190,7.29654761,3587.6,3587.5,0.002]
[1754447108871,7.74234761,3587.6,3587.5,0.002]
[1754447109203,32.07350635,3587.6,3587.5,0.002]
[1754447109898,0.2600008,3587.6,3587.5,0.002]
[1754447110098,4.5090008,3587.6,3587.5,0.002]
[1754447110305,6.23411441,3587.6,3587.5,0.002]
[1754447110465,1.98511441,3587.6,3587.5,0.4675]
[1754447110664,4.50890841,3587.6,3587.5,0.4675]
[1754447111011,4.50890841,3587.6,3587.5,0.9298]
[1754447111366,6.8302,3587.7,3587.5,3.71720698]
[1754447111616,4.249,3587.6,3587.5,0.002]
[1754447111975,4.249,3587.6,3587.5,2.78945644]
[1754447112263,4.249,3587.6,3587.5,0.9298]
[1754447112504,4.249,3587.6,3587.5,3.71725644]
[1754447112690,4.249,3587.6,3587.5,0.9298]
[1754447113008,4.249,3587.6,3587.5,3.71724839]
[1754447114103,0.1392,3587.7,3587.6,2.78737874]
[1754447114408,0.1392,3587.7,3587.6,3.69647874]
[1754447116469,0.001,3587.9,3587.8,2.78722336]
[1754447116823,0.1402,3587.9,3587.8,4.68870677]
[1754447116985,0.1402,3587.9,3587.8,3.69632336]
[1754447117307,0.1402,3587.9,3587.5,0.002]
[1754447117468,0.1392,3587.7,3587.6,3.25927874]
[1754447117667,4.3872,3587.7,3587.6,3.25927874]
[1754447118089,4.3872,3587.7,3587.5,0.002]
[1754447118287,4.3872,3587.7,3587.6,2.78737874]
[1754447118503,4.3872,3587.7,3587.6,3.25927874]
[1754447119007,4.3872,3587.7,3587.6,0.4719]
[1754447119908,4.3872,3587.7,3587.5,0.002]
[1754447120611,5.59511572,3587.7,3587.5,0.002]
[1754447120768,8.38241921,3587.7,3587.5,0.002]
[1754447120971,5.14931572,3587.7,3587.5,0.002]
[1754447121288,7.93661816,3587.7,3587.5,0.002]
[1754447121474,5.14931572,3587.7,3587.5,0.002]
[1754447123307,5.14931572,3587.7,3587.5,0.4739]
[1754447123925,4.3872,3587.7,3587.6,0.4719]
[1754447124086,4.3872,3587.7,3587.6,0.9091]
[1754447124413,4.3872,3587.7,3587.6,3.69647874]
[1754447124576,4.3872,3587.7,3587.6,3.22457874]
[1754447124777,4.3872,3587.7,3587.6,0.9091]
[1754447125225,4.3872,3587.7,3587.6,3.69647874]
[1754447125639,4.3872,3587.7,3587.6,0.9091]
[1754447125836,4.3872,3587.7,3587.6,0.4719]
[1754447126022,4.3872,3587.7,3587.5,0.002]
[1754447126664,5.10473275,3587.7,3587.5,0.002]
[1754447126938,7.89204942,3587.7,3587.5,0.002]
[1754447127153,3.23317874,3587.6,3587.5,0.002]
[1754447127521,3.49345459,3587.6,3587.5,0.002]
[1754447128136,3.23317874,3587.6,3587.5,0.002]
[1754447128334,6.22211737,3587.6,3587.5,0.002]
[1754447128755,6.22216878,3587.6,3587.5,0.002]
[1754447131243,6.22224396,3587.6,3587.5,0.002]
[1754447132151,2.98906522,3587.6,3587.5,0.002]
[1754447132305,0.26040336,3587.6,3587.5,0.4739]
[1754447132656,0.26040336,3587.6,3587.5,0.9111]
[1754447132852,0.26040336,3587.6,3587.5,0.4739]
[1754447136537,3.0477821,3587.6,3587.5,0.002]
[1754447136723,4.14184988,3587.6,3587.5,0.002]
[1754447137128,4.14222106,3587.6,3587.5,0.002]
[1754447138057,4.14222106,3587.6,3587.5,0.4739]
[1754447138058,1.35484232,3587.6,3587.5,0.4739]
[1754447138255,1.35484232,3587.6,3587.5,0.9111]
[1754447138450,4.50777454,3587.6,3587.5,0.9111]
[1754447139563,4.50777454,3587.6,3587.5,0.4739]
[1754447140228,0.26077454,3587.6,3587.5,0.9111]
[1754447140442,4.64697454,3587.6,3587.5,3.69855644]
[1754447140644,4.64697454,3587.6,3587.5,4.34736652]
[1754447141052,4.64697454,3587.6,3587.5,0.4739]
[1754447141257,4.64697454,3587.6,3587.5,0.9111]
[1754447141761,4.64697454,3587.6,3587.5,3.69855644]
[1754447142470,0.39997454,3587.6,3587.5,3.69855644]
[1754447142645,4.3862,3587.6,3587.5,3.69855644]
[1754447142844,4.64697454,3587.6,3587.5,3.69855644]
[1754447143764,4.64697454,3587.6,3587.5,0.002]
[1754447144010,4.64697454,3587.6,3587.5,0.4793]
[1754447144750,4.64697454,3587.6,3587.5,0.9281]
[1754447144948,4.64697454,3587.6,3587.5,3.71555644]
[1754447145450,0.39997454,3587.6,3587.5,3.71555644]
[1754447145650,4.3862,3587.6,3587.5,3.71555644]
[1754447146053,4.64715436,3587.6,3587.5,3.71555644]
[1754447146736,4.3862,3587.6,3587.5,3.71555644]
[1754447146968,4.64719384,3587.6,3587.5,3.71555644]
[1754447147179,4.3862,3587.6,3587.5,3.71555644]
[1754447147570,0.1392,3587.6,3587.5,4.36606651]
[1754447147979,4.3862,3587.6,3587.5,4.36606651]
[1754447149481,4.3862,3587.6,3587.5,3.71555644]
[1754447151287,4.3862,3587.6,3587.5,3.26675644]
[1754447151450,4.3862,3587.6,3587.5,3.71555644]
[1754447153686,4.3862,3587.6,3587.5,3.26675644]
[1754447154191,4.3862,3587.6,3587.5,3.71555644]
[1754447154987,4.3862,3587.6,3587.5,3.26675644]
[1754447156067,4.3862,3587.6,3587.5,3.71555644]
[1754447156269,4.3862,3587.6,3587.5,3.26675644]
[1754447158688,4.3862,3587.6,3587.5,2.78945644]
[1754447159595,4.3862,3587.6,3587.5,3.26675644]
[1754447160404,4.82492,3587.6,3587.5,0.002]
[1754447160553,32.10028233,3587.6,3587.5,0.002]
[1754447160878,32.65028233,3587.6,3587.5,0.002]
[1754447161085,35.65028233,3587.6,3587.5,0.002]
[1754447161279,65.65028233,3587.6,3587.5,0.002]
[1754447161584,3.33768956,3587.2,3587.1,0.002]
[1754447161781,60.11909408,3587.1,3587.0,1e-08]
[1754447161982,3.55,3586.9,3585.8,0.002]
[1754447162288,32.78784499,3587.0,3585.8,0.002]
[1754447162289,3.33838914,3586.3,3585.8,0.002]
[1754447162488,64.62557273,3586.3,3586.2,1e-08]
[1754447162691,66.2090973,3586.3,3586.2,1e-08]
[1754447163104,3.0,3585.6,3585.5,1e-08]
[1754447163277,3.0,3585.6,3582.7,23.78132681]
[1754447163278,3.33924467,3585.2,3583.5,0.4488]
[1754447163477,37.84597062,3585.2,3583.8,0.4773]
[1754447163682,38.86969062,3585.2,3583.8,0.4773]
[1754447164291,6.33932247,3585.1,3583.6,0.4773]
[1754447164497,37.04584842,3585.1,3583.6,0.4773]
[1754447164669,37.04584842,3585.1,3583.8,0.4773]
[1754447164996,11.29184842,3585.1,3584.3,0.4773]
[1754447165391,11.49911024,3585.1,3584.3,0.4773]
[1754447165579,13.93394664,3585.1,3584.3,0.4773]
[1754447166266,13.72668482,3585.1,3584.3,0.4773]
[1754447168313,13.46595887,3585.1,3584.3,0.4773]
[1754447168515,13.46595887,3585.1,3583.9,0.002]
[1754447168516,13.02115887,3585.1,3584.5,0.4773]
[1754447168811,13.02115887,3585.1,3583.9,0.002]
[1754447168812,13.60615887,3585.1,3583.9,3.24104133]
[1754447169038,13.60615887,3585.1,3584.1,0.5173]
[1754447169216,13.60615887,3585.1,3584.3,0.4773]
[1754447169685,10.3710364,3585.1,3584.6,0.4773]
[1754447169887,10.3720364,3585.1,3584.6,0.4773]
[1754447171630,10.3720364,3585.1,3584.8,0.4773]
[1754447171920,10.3720364,3585.1,3585.0,0.9281]
[1754447171921,0.1392,3585.1,3585.0,0.9281]
[1754447172209,4.3872,3585.1,3585.0,0.9281]
[1754447172764,4.3872,3585.1,3585.0,0.4793]
[1754447173009,4.3872,3585.1,3585.0,0.002]
[1754447173179,5.77414469,3585.1,3585.0,0.002]
[1754447173702,1.52614469,3585.1,3585.0,0.002]
[1754447173872,5.77414469,3585.1,3585.0,0.002]
[1754447175082,5.77414469,3585.1,3585.0,0.4737]
[1754447175413,4.3872,3585.1,3585.0,0.4737]
[1754447175911,0.1392,3585.1,3585.0,0.4737]
[1754447176122,4.3872,3585.1,3585.0,0.9335]
[1754447177004,4.3872,3585.1,3585.0,0.002]
[1754447177216,7.72652247,3585.1,3585.0,0.002]
[1754447177513,9.88319146,3585.1,3585.0,0.002]
[1754447178919,9.44739146,3585.1,3585.0,0.002]
[1754447179823,12.44739146,3585.1,3585.0,0.002]
[1754447180038,12.88319146,3585.1,3585.0,0.002]
[1754447181857,12.44739146,3585.1,3585.0,0.002]
[1754447184151,12.44739146,3585.1,3585.0,0.4737]
[1754447184344,12.44739146,3585.1,3585.0,0.002]
[1754447184541,8.19939146,3585.1,3585.0,0.002]
[1754447184746,12.44739146,3585.1,3585.0,0.9335]
[1754447185326,0.1392,3585.1,3585.0,0.9335]
[1754447185652,4.3872,3585.1,3585.0,0.9335]
[1754447187352,0.1392,3585.1,3585.0,0.9335]
[1754447187559,4.3882,3585.1,3585.0,0.9335]
[1754447187761,4.3882,3585.1,3585.0,3.72290027]
[1754447188239,4.3882,3585.1,3585.0,0.9335]
[1754447188665,4.3882,3585.1,3585.0,3.72290027]
[1754447189979,4.3882,3585.1,3585.0,0.9335]
[1754447190186,4.3882,3585.1,3585.0,3.72290027]
[1754447190395,4.3882,3585.1,3585.0,0.9335]
[1754447191665,4.64888455,3585.1,3585.0,0.9335]
[1754447191877,4.64888455,3585.1,3585.0,3.72290027]
[1754447192373,4.64888455,3585.1,3585.0,0.9335]
[1754447192981,4.3882,3585.1,3585.0,0.9335]
[1754447193185,4.64907283,3585.1,3585.0,0.9335]
[1754447194416,5.78328011,3585.1,3585.0,0.002]
[1754447195120,5.78328011,3585.1,3585.0,0.4737]
[1754447195480,5.78228011,3585.1,3585.0,0.4737]
[1754447195681,4.64807283,3585.1,3585.0,0.4737]
[1754447195911,4.3872,3585.1,3585.0,0.4737]
[1754447196117,4.64810741,3585.1,3585.0,0.4737]
[1754447197535,4.64815466,3585.1,3585.0,0.002]
[1754447198094,4.64815466,3585.1,3585.0,0.4737]
[1754447198300,7.43747713,3585.1,3585.0,0.4737]
[1754447198618,7.43747713,3585.1,3585.0,0.002]
[1754447198925,4.64815466,3585.1,3585.0,0.4737]
[1754447199096,4.3872,3585.1,3585.0,0.002]
[1754447200225,7.17652247,3585.1,3585.0,0.002]
[1754447200731,4.3872,3585.1,3585.0,0.002]
[1754447201032,4.3872,3585.1,3585.0,0.4737]
[1754447202026,4.3872,3585.1,3585.0,0.9335]
[1754447202618,0.1402,3585.1,3585.0,0.9335]
[1754447202786,0.001,3585.5,3585.4,2.78908908]
[1754447202994,4.3872,3585.5,3585.4,2.78908908]
[1754447203185,4.3872,3585.5,3585.4,3.70448908]
[1754447211672,0.1402,3585.5,3585.4,3.70448908]
[1754447211907,4.3862,3585.5,3585.4,3.70448908]
[1754447212120,4.3862,3585.5,3585.4,4.63277356]
[1754447213026,0.001,3585.5,3585.4,4.63277356]
[1754447213576,0.001,3585.5,3585.4,5.53277356]
[1754447217221,0.001,3585.5,3585.4,8.53277356]
[1754447217395,1e-08,3585.5,3585.4,8.67197356]
[1754447219933,1e-08,3585.5,3585.4,12.91697356]
[1754447220357,1e-08,3585.5,3585.4,12.77777356]
[1754447220659,1e-08,3585.5,3585.4,8.53277356]
[1754447221338,1e-08,3585.5,3585.4,3.68908908]
[1754447221543,1e-08,3585.5,3585.4,4.15498908]
[1754447221859,1e-08,3585.5,3585.4,11.98868908]
[1754447222033,0.001,3585.9,3585.8,2.78877795]
[1754447222234,0.001,3585.9,3585.8,10.06166572]
[1754447222557,0.001,3585.9,3585.8,10.94917795]
[1754447222849,0.001,3585.9,3585.8,11.08837795]
[1754447223637,0.001,3585.9,3585.8,12.75500362]
[1754447223841,0.001,3585.9,3585.8,12.61580362]
[1754447226069,0.001,3585.9,3585.8,8.37080362]
[1754447227968,0.001,3585.9,3585.8,12.75400362]
[1754447229855,0.001,3586.2,3586.1,2.78854465]
[1754447230070,0.001,3586.2,3586.1,4.92166284]
[1754447230261,0.001,3586.2,3586.1,5.83706284]
[1754447230467,0.001,3586.2,3586.1,5.38756284]
[1754447231065,0.001,3586.2,3586.1,2.78854465]
[1754447231400,0.1402,3586.2,3586.1,2.78854465]
[1754447231558,0.1402,3586.2,3586.1,3.25444465]
[1754447237190,0.1402,3586.2,3586.1,3.68544465]
[1754447237963,0.1402,3586.2,3586.1,3.25444465]
[1754447240883,0.1402,3586.2,3586.1,2.78854465]
[1754447242799,0.1402,3586.2,3585.6,3.0]
[1754447242800,0.1402,3586.2,3586.0,2.78859935]
[1754447243097,0.4458,3586.1,3586.0,2.78859935]
[1754447243301,0.1392,3586.1,3586.0,2.78859935]
[1754447244893,0.585,3586.1,3586.0,2.78859935]
[1754447245209,0.7251,3586.1,3585.4,0.4909]
[1754447245401,0.1392,3585.9,3585.4,0.4909]
[1754447245605,0.4458,3586.1,3585.9,2.78864459]
[1754447245813,0.1392,3586.0,3585.9,2.78864459]
[1754447248474,0.7251,3586.0,3585.4,2.78906354]
[1754447248674,0.1392,3585.8,3585.1,0.002]
[1754447248972,0.5859,3585.9,3585.1,0.002]
[1754447248973,0.1392,3585.2,3585.1,2.79129566]
[1754447249406,0.1392,3585.2,3585.1,3.28219566]
[1754447249611,0.1392,3585.2,3585.1,3.71319566]
[1754447251204,0.1392,3585.2,3585.1,4.61319566]
[1754447252237,0.1392,3585.2,3585.1,4.18219566]
[1754447252536,0.1392,3585.2,3585.1,3.69129566]
[1754447254228,0.1392,3585.2,3585.1,4.18219566]
[1754447256337,4.244,3586.2,3585.7,2.78882243]
[1754447256519,4.244,3586.2,3585.8,2.7887484]
[1754447256937,0.1392,3585.9,3585.8,3.2796484]
[1754447257109,0.1392,3585.9,3585.1,4.7359]
[1754447257316,0.4458,3586.1,3585.2,0.4909]
[1754447257515,0.1392,3585.4,3585.3,3.22016687]
[1754447257901,0.1392,3585.4,3585.3,3.71106687]
[1754447258907,4.244,3586.2,3585.4,2.7890303]
[1754447259152,4.244,3586.2,3586.1,2.78854465]
[1754447259837,4.8077,3586.2,3585.5,0.4909]
[1754447260002,0.1392,3586.0,3585.9,2.78870018]
[1754447260205,0.001,3586.2,3585.4,2.78903856]
[1754447260439,0.001,3586.2,3586.1,2.78854465]
[1754447260820,0.001,3586.2,3586.1,3.71044465]
[1754447260821,0.1402,3586.2,3586.1,3.71044465]
[1754447262532,0.1402,3586.2,3586.1,3.27944465]
[1754447262910,0.1402,3586.2,3586.1,2.78854465]
[1754447264964,0.1402,3586.2,3586.1,3.26704465]
[1754447265624,0.1402,3586.2,3586.0,2.78860267]
[1754447265949,0.1392,3586.1,3586.0,2.78860267]
[1754447266150,0.1392,3586.1,3586.0,3.73990267]
[1754447266647,0.1392,3586.1,3586.0,2.78860267]
[1754447267218,0.1392,3586.1,3585.4,4.242]
[1754447267426,0.1392,3585.9,3585.7,2.78879316]
[1754447267681,0.44,3586.2,3585.7,2.78879316]
[1754447267848,0.1392,3585.8,3585.7,0.9]
[1754447268167,0.1392,3585.8,3585.7,3.68885573]
[1754447268352,0.1392,3585.8,3585.7,2.78885573]
[1754447268523,0.1392,3585.8,3585.7,3.26735573]
[1754447269057,0.1392,3585.8,3585.7,0.4785]
[1754447269355,0.1392,3585.8,3585.3,0.4785]
[1754447269572,0.439,3586.0,3585.4,2.78906208]
[1754447269771,0.1392,3585.5,3585.4,2.78906208]
[1754447270135,0.1392,3585.5,3585.3,0.4785]
[1754447270136,0.1392,3585.5,3585.3,3.26764218]
[1754447270846,0.5782,3585.5,3585.1,0.002]
[1754447271180,0.439,3585.5,3585.2,2.78923964]
[1754447271681,0.1401,3585.7,3585.2,2.78923964]
[1754447271997,0.75077705,3585.6,3585.1,0.002]
[1754447272202,0.1392,3585.3,3585.1,0.002]
[1754447273307,4.3812,3585.3,3585.1,0.002]
[1754447275600,4.3812,3585.3,3585.1,2.79132158]
[1754447275908,4.3812,3585.3,3585.1,0.4805]
[1754447277005,4.3812,3585.3,3585.1,3.26981942]
[1754447277307,4.3812,3585.3,3585.1,0.002]
[1754447277892,5.17329922,3585.3,3585.1,0.002]